fUST/lending_fUST_20250817
["ID","MTS","AMOUNT","RATE_DAILY","PERIOD"]
[379820094,1755418324451,722.26,0.00019515,30]
[379820095,1755418327819,5000.0,0.00019551,2]
[379820102,1755418336602,5000.0,0.00019551,2]
[379820103,1755418337841,500.0,0.00018538,2]
[379820104,1755418337904,214.61512769,0.0001948,2]
[379820109,1755418352372,5000.0,0.00019551,2]
[379820110,1755418356079,256.0,0.00018181,26]
[379820113,1755418365331,203.34792415,0.00019481,2]
[379820116,1755418368160,292.0953087,0.00018639,2]
[379820117,1755418368503,398.51914861,0.00019551,2]
[379820132,1755418405485,240.2,0.00017647,30]
[379820133,1755418405938,480.4,0.00018487,30]
[379820134,1755418406399,625.25249226,0.00019327,30]
[379820135,1755418406429,95.35750774,0.00019327,30]
[379820148,1755418453031,4165.20926833,0.00019496,2]
[379820150,1755418455265,1084.11733739,0.00019486,2]
[379820155,1755418477402,490.2510739,0.00019178,2]
[379820163,1755418524849,399.29066404,0.000189,2]
[379820168,1755418535574,302.63687509,0.000189,2]
[379820169,1755418535638,304.2956757,0.00019278,2]
[379820170,1755418535685,302.63687509,0.00019089,2]
[379820171,1755418596535,1752.6000686,0.00018585,2]
[379820172,1755418638355,-158.46569008,0.00019577,2]
[379820174,1755418647661,10000.0,0.00018586,2]
[379820176,1755418665314,-298.64208696,0.00019577,2]
[379820185,1755418728287,948.60267019,0.00019481,2]
[379820189,1755418765709,155.00198393,0.00019241,2]
[379820190,1755418765735,144.29104612,0.00019241,2]
[379820192,1755418774132,302.57643838,0.00019145,2]
[379820195,1755418796162,1103.044274,0.00018584,2]
[379820197,1755418809094,5491.76741517,0.00018,2]
[379820199,1755418826048,266.19377603,0.000189,2]
[379820202,1755418832481,481.993747,0.00013699,2]
[379820215,1755418864067,-151.0,0.00019567,2]
[379820216,1755418864097,-1.701679,0.00019567,2]
[379820218,1755418866877,-149.298321,0.00019567,2]
[379820219,1755418866905,-15.75668753,0.00019567,2]
[379820220,1755418870144,-207.0137164,0.00019567,2]
[379820223,1755418877728,524.77040393,0.00019551,2]
[379820246,1755418998577,867.35759733,0.00019474,2]
[379820249,1755419003145,-200.0,0.00019972,20]
[379820250,1755419003171,-200.0,0.00019972,20]
[379820251,1755419003198,-200.0,0.00019972,20]
[379820252,1755419003224,-200.0,0.00019972,20]
[379820253,1755419003249,-200.0,0.00019972,20]
[379820254,1755419003274,-200.0,0.00019972,20]
[379820255,1755419003300,-200.0,0.00019972,20]
[379820256,1755419003325,-200.0,0.00019972,20]
[379820257,1755419003350,-200.0,0.00019972,20]
[379820258,1755419003376,-200.0,0.00019972,20]
[379820259,1755419003404,-600.0,0.00019972,20]
[379820261,1755419013102,-152.981155,0.00021602,30]
[379820262,1755419013127,-152.981155,0.00021602,30]
[379820263,1755419013155,-4929.74666207,0.00021762,30]
[379820264,1755419013191,-500.0,0.00022,30]
[379820265,1755419013215,-500.0,0.00022,30]
[379820268,1755419019964,-256.0,0.00020437,20]
[379820269,1755419020001,-152.981155,0.00021183,20]
[379820270,1755419020030,-152.981155,0.00021383,20]
[379820271,1755419020074,-720.0,0.00021969,20]
[379820293,1755419092672,168.0,0.00019491,2]
[379820297,1755419118918,500.0,0.00018986,2]
[379820301,1755419127499,177.46251735,0.000189,2]
[379820308,1755419168019,232.34,0.00017765,30]
[379820309,1755419168517,464.68,0.00018611,30]
[379820310,1755419168983,697.02,0.00019456,30]
[379820311,1755419169386,929.36,0.00020302,30]
[379820329,1755419252893,219.67,0.00016805,30]
[379820330,1755419253322,439.34,0.00017605,30]
[379820332,1755419253754,659.0,0.00018405,30]
[379820333,1755419254715,878.67,0.00019206,30]
[379820334,1755419255155,1098.34,0.00020006,30]
[379820335,1755419255688,1318.01,0.00020806,30]
[379820337,1755419268853,-187.41557551,0.00019564,2]
[379820338,1755419269307,9972.54278469,0.00018,2]
[379820339,1755419269331,4238.98057591,0.00018,2]
[379820344,1755419289349,551.0,0.0001929,2]
[379820347,1755419294776,168.0,0.00019175,2]
[379820355,1755419311550,15042.01942409,0.00017,2]
[379820356,1755419311574,10290.28810498,0.00017,2]
[379820358,1755419313285,-151.16580636,0.00019564,2]
[379820360,1755419314434,9709.71189502,0.00018,2]
[379820361,1755419314456,15400.24551059,0.00018,2]
[379820363,1755419315835,210.16977941,0.000149,2]
[379820368,1755419333655,194.51,0.00017086,30]
[379820369,1755419334103,389.01,0.000179,30]
[379820370,1755419334524,583.52,0.00018714,30]
[379820371,1755419334925,778.02,0.00019527,30]
[379820372,1755419335340,972.53,0.00020341,30]
[379820381,1755419358988,-164.87774405,0.00019564,2]
[379820385,1755419375025,758.93789762,0.00019466,2]
[379820388,1755419414696,178.59,0.0001702,30]
[379820389,1755419415237,357.18,0.0001783,30]
[379820390,1755419415724,535.78,0.00018641,30]
[379820391,1755419416428,714.37,0.00019451,30]
[379820392,1755419416913,892.96,0.00020262,30]
[379820396,1755419428990,150.0,0.000189,2]
[379820428,1755419432245,-151.0,0.00019561,2]
[379820430,1755419432254,-188.94057126,0.00019561,2]
[379820432,1755419432265,-17653.58187674,0.00019561,2]
[379820434,1755419432275,-300.0,0.00019563,2]
[379820435,1755419432284,-281.0,0.00019563,2]
[379820437,1755419432293,-300.0,0.00019563,2]
[379820438,1755419432302,-1200.0,0.00019563,2]
[379820439,1755419432312,-696.54087408,0.00019564,2]
[379820440,1755419432321,-194.70048,0.00019564,2]
[379820441,1755419432330,-500.0,0.00019564,2]
[379820442,1755419432340,-339.92104935,0.00019564,2]
[379820443,1755419432349,-201.39602192,0.00019564,2]
[379820445,1755419432359,-338.08459989,0.00019564,2]
[379820447,1755419432369,-473.20504275,0.00019564,2]
[379820448,1755419432378,-500.0,0.00019564,2]
[379820449,1755419432388,-500.0,0.00019564,2]
[379820450,1755419432397,-500.0,0.00019564,2]
[379820451,1755419432406,-500.0,0.00019564,2]
[379820452,1755419432416,-560.63586946,0.00019564,2]
[379820453,1755419432425,-500.0,0.00019564,2]
[379820454,1755419432434,-500.0,0.00019564,2]
[379820455,1755419432443,-500.0,0.00019564,2]
[379820457,1755419432452,-500.0,0.00019564,2]
[379820459,1755419432462,-500.0,0.00019564,2]
[379820461,1755419432471,-378.9057234,0.00019564,2]
[379820462,1755419432480,-500.0,0.00019564,2]
[379820464,1755419432489,-215.54295222,0.00019564,2]
[379820466,1755419432498,-500.0,0.00019564,2]
[379820468,1755419432507,-500.0,0.00019564,2]
[379820470,1755419432516,-500.0,0.00019564,2]
[379820472,1755419432526,-500.0,0.00019564,2]
[379820474,1755419432535,-500.0,0.00019564,2]
[379820476,1755419432545,-500.0,0.00019564,2]
[379820478,1755419432556,-500.0,0.00019564,2]
[379820480,1755419432566,-500.0,0.00019564,2]
[379820482,1755419432575,-500.0,0.00019564,2]
[379820484,1755419432584,-500.0,0.00019564,2]
[379820486,1755419432593,-500.0,0.00019564,2]
[379820488,1755419432610,-500.0,0.00019564,2]
[379820505,1755419432771,-500.0,0.00019564,2]
[379820507,1755419432791,-500.0,0.00019564,2]
[379820509,1755419432801,-500.0,0.00019564,2]
[379820511,1755419432810,-500.0,0.00019564,2]
[379820513,1755419432820,-500.0,0.00019564,2]
[379820515,1755419432829,-500.0,0.00019564,2]
[379820517,1755419432839,-500.0,0.00019564,2]
[379820519,1755419432849,-500.0,0.00019564,2]
[379820521,1755419432858,-500.0,0.00019564,2]
[379820523,1755419432867,-480.0,0.00019565,2]
[379820525,1755419432876,-480.0,0.00019565,2]
[379820527,1755419432885,-480.0,0.00019565,2]
[379820529,1755419432895,-1048.69,0.00019565,2]
[379820531,1755419432904,-820.21,0.00019574,2]
[379820533,1755419432914,-480.0,0.00019574,2]
[379820535,1755419432923,-492.50856841,0.00019574,2]
[379820536,1755419432933,-703.13,0.00019574,2]
[379820537,1755419432943,-1108.34,0.00019574,2]
[379820538,1755419432953,-706.25,0.00019574,2]
[379820539,1755419432962,-355.4,0.00019574,2]
[379820540,1755419432971,-1987.42,0.00019574,2]
[379820541,1755419432981,-480.0,0.00019574,2]
[379820542,1755419432990,-480.0,0.00019574,2]
[379820543,1755419432999,-263.64364614,0.00019577,2]
[379820545,1755419433010,-480.0,0.00019577,2]
[379820547,1755419433019,-646.12,0.00019577,2]
[379820549,1755419433028,-480.0,0.00019577,2]
[379820551,1755419433038,-757.06,0.00019577,2]
[379820553,1755419433047,-480.0,0.00019577,2]
[379820555,1755419433057,-480.0,0.00019577,2]
[379820557,1755419433067,-480.0,0.00019577,2]
[379820559,1755419433077,-480.0,0.00019577,2]
[379820561,1755419433086,-1393.58,0.00019577,2]
[379820563,1755419433096,-306.28,0.00019577,2]
[379820565,1755419433106,-490.23705647,0.00019577,2]
[379820567,1755419433115,-480.0,0.00019577,2]
[379820569,1755419433125,-480.0,0.00019577,2]
[379820571,1755419433134,-480.0,0.00019577,2]
[379820572,1755419433144,-480.0,0.00019577,2]
[379820573,1755419433153,-480.0,0.00019577,2]
[379820574,1755419433162,-511.29,0.00019577,2]
[379820575,1755419433171,-355.92592018,0.00019577,2]
[379820576,1755419433181,-480.0,0.00019578,2]
[379820577,1755419433190,-3947.72,0.00019578,2]
[379820578,1755419433199,-480.0,0.00019578,2]
[379820579,1755419433209,-724.13,0.00019578,2]
[379820580,1755419433219,-480.0,0.00019578,2]
[379820581,1755419433228,-488.81640553,0.0001958,2]
[379820582,1755419433238,-480.0,0.0001958,2]
[379820583,1755419433247,-480.0,0.0001958,2]
[379820584,1755419433257,-580.1207489,0.0001958,2]
[379820585,1755419433267,-480.0,0.0001958,2]
[379820586,1755419433276,-480.0,0.0001958,2]
[379820587,1755419433287,-480.0,0.0001958,2]
[379820588,1755419433297,-1073.18,0.0001958,2]
[379820589,1755419433306,-542.27,0.00019582,2]
[379820590,1755419433316,-492.68,0.00019582,2]
[379820591,1755419433326,-480.0,0.00019582,2]
[379820592,1755419433336,-405.3781542,0.00019582,2]
[379820593,1755419433345,-480.0,0.00019582,2]
[379820594,1755419433355,-642.72,0.00019582,2]
[379820595,1755419433364,-480.0,0.00019582,2]
[379820596,1755419433373,-426.75500141,0.00019582,2]
[379820597,1755419433382,-480.0,0.00019582,2]
[379820598,1755419433391,-480.0,0.00019582,2]
[379820599,1755419433400,-158.46569008,0.00019582,2]
[379820600,1755419433409,-480.0,0.00019582,2]
[379820601,1755419433419,-5035.86,0.00019583,2]
[379820602,1755419433428,-714.3,0.00019586,2]
[379820603,1755419433437,-3483.03,0.00019586,2]
[379820604,1755419433447,-480.0,0.00019596,2]
[379820605,1755419433456,-500.0,0.00019596,2]
[379820606,1755419433465,-480.0,0.00019596,2]
[379820607,1755419433474,-220.69295199,0.00019596,2]
[379820608,1755419433483,-580.95,0.00019596,2]
[379820609,1755419433492,-152.51292251,0.00019596,2]
[379820610,1755419433501,-480.0,0.00019596,2]
[379820611,1755419433511,-480.0,0.00019596,2]
[379820613,1755419433521,-480.0,0.00019596,2]
[379820615,1755419433531,-480.0,0.00019596,2]
[379820617,1755419433541,-164.87774405,0.00019596,2]
[379820619,1755419433552,-898.38,0.00019598,2]
[379820621,1755419433562,-1040.03,0.00019598,2]
[379820623,1755419433572,-1776.96816254,0.000196,2]
[379820625,1755419433582,-270.39,0.000196,2]
[379820627,1755419433593,-500.0,0.00019677,2]
[379820628,1755419433602,-15780.0335499,0.00019718,2]
[379820630,1755419433614,-168.0,0.00019724,2]
[379820631,1755419433624,-416.71,0.0001977,2]
[379820632,1755419433634,-669.19855036,0.00019772,2]
[379820633,1755419433643,-281.5,0.0001979,3]
[379820634,1755419433652,-844.54,0.0001979,3]
[379820635,1755419433663,-109027.40915718,0.000198,2]
[379820636,1755419433672,-480.0,0.00019839,2]
[379820637,1755419433683,-1048.69,0.00019839,2]
[379820638,1755419433693,-820.21,0.00019848,2]
[379820639,1755419433704,-703.13,0.00019848,2]
[379820640,1755419433714,-1108.34,0.00019848,2]
[379820642,1755419433723,-706.25,0.00019848,2]
[379820644,1755419433732,-1987.42,0.00019848,2]
[379820646,1755419433741,-480.0,0.00019848,2]
[379820648,1755419433751,-480.0,0.00019848,2]
[379820650,1755419433761,-480.0,0.00019851,2]
[379820652,1755419433770,-646.12,0.00019851,2]
[379820653,1755419433781,-480.0,0.00019851,2]
[379820655,1755419433791,-757.06,0.00019851,2]
[379820657,1755419433800,-480.0,0.00019851,2]
[379820659,1755419433809,-480.0,0.00019851,2]
[379820661,1755419433819,-480.0,0.00019851,2]
[379820663,1755419433828,-1393.58,0.00019851,2]
[379820665,1755419433838,-480.0,0.00019851,2]
[379820667,1755419433848,-480.0,0.00019851,2]
[379820669,1755419433858,-480.0,0.00019851,2]
[379820671,1755419433867,-480.0,0.00019851,2]
[379820673,1755419433877,-480.0,0.00019851,2]
[379820675,1755419433886,-511.29,0.00019851,2]
[379820677,1755419433896,-480.0,0.00019852,2]
[379820679,1755419433905,-3947.72,0.00019852,2]
[379820681,1755419433915,-480.0,0.00019852,2]
[379820683,1755419433924,-724.13,0.00019852,2]
[379820685,1755419433933,-480.0,0.00019852,2]
[379820687,1755419433942,-480.0,0.00019853,2]
[379820689,1755419433952,-463.13351496,0.00019853,2]
[379820691,1755419433961,-480.0,0.00019853,2]
[379820693,1755419433970,-480.0,0.00019853,2]
[379820694,1755419433981,-1073.18,0.00019853,2]
[379820695,1755419433990,-542.27,0.00019856,2]
[379820696,1755419434000,-492.68,0.00019856,2]
[379820697,1755419434011,-546.87888638,0.00019856,2]
[379820698,1755419434021,-480.0,0.00019856,2]
[379820699,1755419434031,-642.72,0.00019856,2]
[379820700,1755419434041,-480.0,0.00019856,2]
[379820701,1755419434052,-480.0,0.00019856,2]
[379820702,1755419434061,-480.0,0.00019856,2]
[379820703,1755419434071,-480.0,0.00019856,2]
[379820704,1755419434081,-5035.86,0.00019857,2]
[379820705,1755419434091,-714.3,0.0001986,2]
[379820706,1755419434101,-3483.03,0.0001986,2]
[379820707,1755419434111,-480.0,0.0001987,2]
[379820708,1755419434121,-444.22976348,0.0001987,2]
[379820709,1755419434131,-580.95,0.0001987,2]
[379820710,1755419434140,-480.0,0.0001987,2]
[379820711,1755419434149,-480.0,0.0001987,2]
[379820712,1755419434159,-424.45609881,0.0001987,2]
[379820713,1755419434169,-480.0,0.0001987,2]
[379820714,1755419434178,-898.38,0.00019872,2]
[379820715,1755419434188,-1040.03,0.00019872,2]
[379820716,1755419434199,-200.0,0.00019958,20]
[379820717,1755419434208,-200.0,0.00019958,20]
[379820718,1755419434219,-200.0,0.00019958,20]
[379820719,1755419434227,-200.0,0.00019958,20]
[379820720,1755419434239,-200.0,0.00019958,20]
[379820721,1755419434248,-200.0,0.00019958,20]
[379820722,1755419434258,-200.0,0.00019958,20]
[379820723,1755419434267,-200.0,0.00019958,20]
[379820724,1755419434276,-200.0,0.00019958,20]
[379820725,1755419434286,-200.0,0.00019958,20]
[379820726,1755419434295,-600.0,0.00019964,20]
[379820727,1755419434305,-246.67017183,0.0002,7]
[379820728,1755419434314,-650.29398231,0.0002,2]
[379820729,1755419434324,-500.0,0.0002,2]
[379820730,1755419434333,-9304.62381923,0.0002003,2]
[379820731,1755419434343,-177.0,0.00020035,2]
[379820732,1755419434353,-168.0,0.00020045,2]
[379820733,1755419434361,-177.0,0.00020066,2]
[379820734,1755419434370,-500.0,0.00020082,2]
[379820735,1755419434380,-168.0,0.00020082,2]
[379820736,1755419434390,-669.19855033,0.00020094,2]
[379820737,1755419434400,-480.0,0.00020113,2]
[379820738,1755419434410,-1048.69,0.00020113,2]
[379820739,1755419434420,-820.21,0.00020122,2]
[379820740,1755419434429,-703.13,0.00020122,2]
[379820741,1755419434440,-1108.34,0.00020122,2]
[379820742,1755419434450,-706.25,0.00020122,2]
[379820743,1755419434459,-1987.42,0.00020122,2]
[379820744,1755419434468,-480.0,0.00020122,2]
[379820745,1755419434478,-480.0,0.00020122,2]
[379820746,1755419434487,-480.0,0.00020125,2]
[379820747,1755419434496,-646.12,0.00020125,2]
[379820748,1755419434505,-480.0,0.00020125,2]
[379820749,1755419434514,-757.06,0.00020125,2]
[379820750,1755419434523,-480.0,0.00020125,2]
[379820751,1755419434533,-480.0,0.00020125,2]
[379820752,1755419434542,-480.0,0.00020125,2]
[379820753,1755419434552,-1393.58,0.00020125,2]
[379820754,1755419434561,-480.0,0.00020125,2]
[379820755,1755419434570,-480.0,0.00020125,2]
[379820756,1755419434580,-369.30931286,0.00020125,2]
[379820757,1755419434589,-480.0,0.00020125,2]
[379820758,1755419434598,-600.32,0.00020125,2]
[379820759,1755419434609,-511.29,0.00020125,2]
[379820760,1755419434619,-480.0,0.00020126,2]
[379820761,1755419434628,-3947.72,0.00020126,2]
[379820762,1755419434637,-480.0,0.00020126,2]
[379820763,1755419434646,-724.13,0.00020126,2]
[379820764,1755419434657,-480.0,0.00020126,2]
[379820765,1755419434668,-480.0,0.00020127,2]
[379820766,1755419434677,-480.0,0.00020127,2]
[379820767,1755419434687,-480.0,0.00020127,2]
[379820768,1755419434697,-1073.18,0.00020127,2]
[379820769,1755419434706,-542.27,0.0002013,2]
[379820770,1755419434715,-492.68,0.0002013,2]
[379820771,1755419434726,-480.0,0.0002013,2]
[379820772,1755419434735,-642.72,0.0002013,2]
[379820773,1755419434745,-480.0,0.0002013,2]
[379820774,1755419434754,-480.0,0.0002013,2]
[379820775,1755419434763,-480.0,0.0002013,2]
[379820776,1755419434772,-480.0,0.0002013,2]
[379820777,1755419434782,-5035.86,0.00020131,2]
[379820778,1755419434791,-714.3,0.00020134,2]
[379820780,1755419434800,-480.0,0.00020144,2]
[379820781,1755419434810,-580.95,0.00020144,2]
[379820782,1755419434820,-480.0,0.00020144,2]
[379820783,1755419434830,-480.0,0.00020144,2]
[379820784,1755419434839,-480.0,0.00020144,2]
[379820785,1755419434848,-898.38,0.00020146,2]
[379820786,1755419434857,-1040.03,0.00020146,2]
[379820787,1755419434866,-481.993747,0.00020187,2]
[379820788,1755419434875,-160.0,0.00020195,2]
[379820789,1755419434884,-160.0,0.00020195,2]
[379820790,1755419434893,-160.0,0.00020195,2]
[379820791,1755419434901,-375.77065697,0.00020195,2]
[379820792,1755419434910,-160.0,0.00020195,2]
[379820793,1755419434920,-232.1512529,0.00020195,2]
[379820794,1755419434928,-160.0,0.00020195,2]
[379820795,1755419434937,-843.71309931,0.00020195,2]
[379820796,1755419434946,-160.0,0.00020195,2]
[379820797,1755419434955,-160.0,0.00020195,2]
[379820798,1755419434964,-3258.25354129,0.00020195,2]
[379820799,1755419434978,-945.08,0.00020195,2]
[379820800,1755419434989,-4782.67359331,0.00020195,2]
[379820818,1755419438276,-256.0,0.00019905,2]
[379820819,1755419438286,-3483.03,0.00020134,2]
[379820820,1755419438295,-3696.45733675,0.00020195,2]
[379820821,1755419438305,-160.0,0.00020195,2]
[379820822,1755419438315,-417.15472785,0.00020195,2]
[379820823,1755419438326,-528.48506731,0.00020195,2]
[379820825,1755419438336,-160.0,0.00020195,2]
[379820826,1755419438345,-215.71995163,0.00020195,2]
[379820827,1755419438355,-596.05185175,0.00020212,2]
[379820828,1755419438364,-160.7608968,0.00020219,2]
[379820829,1755419438373,-500.0,0.00020267,2]
[379820830,1755419438383,-177.0,0.00020297,2]
[379820831,1755419438392,-177.0,0.00020301,2]
[379820832,1755419438402,-153.0,0.00020356,2]
[379820833,1755419438412,-153.0,0.00020356,2]
[379820835,1755419438423,-153.0,0.00020356,2]
[379820836,1755419438432,-406.3,0.00020365,2]
[379820837,1755419438442,-160.0,0.00020368,3]
[379820838,1755419438452,-480.0,0.00020387,2]
[379820839,1755419438461,-1048.69,0.00020387,2]
[379820840,1755419438470,-820.21,0.00020396,2]
[379820841,1755419438480,-703.13,0.00020396,2]
[379820843,1755419438489,-1108.34,0.00020396,2]
[379820845,1755419438498,-442.64839209,0.00020396,2]
[379820846,1755419438513,-263.60160791,0.00020396,2]
[379820847,1755419438523,-1987.42,0.00020396,2]
[379820848,1755419438532,-480.0,0.00020396,2]
[379820849,1755419438542,-480.0,0.00020396,2]
[379820850,1755419438551,-480.0,0.00020399,2]
[379820851,1755419438561,-646.12,0.00020399,2]
[379820852,1755419438570,-480.0,0.00020399,2]
[379820853,1755419438580,-757.06,0.00020399,2]
[379820854,1755419438589,-480.0,0.00020399,2]
[379820855,1755419438598,-55.10651126,0.00020399,2]
[379821211,1755419443406,-340.37963069,0.00019577,2]
[379821465,1755419446116,-139.62036931,0.00019577,2]
[379821467,1755419446126,-480.0,0.00019851,2]
[379821470,1755419446135,-480.0,0.00020125,2]
[379821471,1755419446145,-424.89348874,0.00020399,2]
[379821473,1755419446154,-480.0,0.00020399,2]
[379821475,1755419446163,-1393.58,0.00020399,2]
[379821477,1755419446172,-480.0,0.00020399,2]
[379821479,1755419446181,-480.0,0.00020399,2]
[379821481,1755419446190,-480.0,0.00020399,2]
[379821483,1755419446199,-511.29,0.00020399,2]
[379821485,1755419446208,-480.0,0.00020399,2]
[379821487,1755419446218,-177.0,0.00020399,2]
[379821489,1755419446227,-3947.72,0.000204,2]
[379821491,1755419446236,-480.0,0.000204,2]
[379821493,1755419446245,-724.13,0.000204,2]
[379821495,1755419446254,-480.0,0.000204,2]
[379821497,1755419446263,-1001.22,0.000204,2]
[379821499,1755419446272,-480.0,0.00020401,2]
[379821501,1755419446281,-480.0,0.00020401,2]
[379821503,1755419446291,-480.0,0.00020401,2]
[379821505,1755419446300,-899.92613732,0.00020401,2]
[379821507,1755419446313,-173.25386268,0.00020401,2]
[379821510,1755419446322,-542.27,0.00020404,2]
[379821512,1755419446331,-492.68,0.00020404,2]
[379821513,1755419446340,-480.0,0.00020404,2]
[379821515,1755419446349,-642.72,0.00020404,2]
[379821517,1755419446358,-480.0,0.00020404,2]
[379821519,1755419446367,-480.0,0.00020404,2]
[379821521,1755419446377,-480.0,0.00020404,2]
[379821524,1755419446387,-480.0,0.00020404,2]
[379821525,1755419446397,-2101.96930774,0.00020405,2]
[379821575,1755419446858,-2933.89069226,0.00020405,2]
[379821577,1755419446868,-714.3,0.00020408,2]
[379821579,1755419446880,-3483.03,0.00020408,2]
[379821581,1755419446892,-263.39785788,0.00020416,2]
[379821584,1755419446907,-405.80069245,0.00020416,2]
[379821586,1755419446919,-177.0,0.00020417,2]
[379821588,1755419446929,-480.0,0.00020418,2]
[379821591,1755419446939,-282.44182133,0.00020418,2]
[379822602,1755419457775,3480.64681238,0.00019551,2]
[379822605,1755419457802,740.05586342,0.00019551,2]
[379827467,1755419512212,500.0,0.00018986,2]
[379828576,1755419523750,18759.94413658,0.00019178,2]
[379828579,1755419523774,4412.60458922,0.00019178,2]
[379829528,1755419567275,163.96,0.00019403,30]
[379829529,1755419567736,327.93,0.00020327,30]
[379829530,1755419568272,-168.95489268,0.00019563,2]
[379829531,1755419577272,168.91105518,0.00019551,2]
[379829535,1755419650345,10000.0,0.00018577,2]
[379829536,1755419658591,161.28,0.00019385,30]
[379829537,1755419659018,322.56,0.00020308,30]
[379829539,1755419669122,5000.0,0.00019551,2]
[379829544,1755419685678,418.4843556,0.00019551,2]
[379829545,1755419685703,910.2800915,0.00019551,2]
[379829550,1755419711086,1424.0,0.00019546,2]
[379829553,1755419730208,469.02855209,0.000189,2]
[379829556,1755419742592,158.64,0.00019472,30]
[379829557,1755419743772,317.28,0.00020399,30]
[379829561,1755419752970,5000.0,0.00019178,2]
[379829564,1755419764679,1500.18796065,0.0001,2]
[379829565,1755419765720,500.0,0.00018986,2]
[379829568,1755419794864,445.05887,0.00013699,2]
[379829571,1755419810375,664.0706604,0.00019477,2]
[379829574,1755419811987,551.522137,0.00018573,2]
[379829577,1755419828126,156.05,0.00016995,30]
[379829578,1755419828541,312.09,0.00017805,30]
[379829579,1755419828982,468.14,0.00018614,30]
[379829580,1755419829427,624.18,0.00019423,30]
[379829581,1755419829862,780.23,0.00020232,30]
[379829590,1755419910572,150.0,0.00017054,30]
[379829591,1755419911569,286.56,0.00017866,30]
[379829592,1755419912072,429.83,0.00018678,30]
[379829593,1755419912470,573.11,0.0001949,30]
[379829594,1755419912867,716.39,0.00020302,30]
[379829596,1755419918638,170.72401,0.00018722,2]
[379829598,1755419934777,5000.0,0.00019178,2]
[379829599,1755419934940,3365.12771836,0.00019178,2]
[379829600,1755419934962,1634.87228164,0.00019178,2]
[379829606,1755419965241,162.54304107,0.00019462,2]
[379829613,1755419997593,581.06182785,0.00019477,2]
[379829614,1755419997774,150.0,0.00017022,30]
[379829615,1755419998184,263.04,0.00017833,30]
[379829616,1755419998626,394.56,0.00018643,30]
[379829617,1755419999094,526.07,0.00019454,30]
[379829618,1755419999499,657.59,0.00020264,30]
[379829622,1755420031366,312.68570139,0.000189,2]
[379829629,1755420045555,210.35256253,0.00019461,2]
[379829632,1755420051858,179.69085456,0.00019461,2]
[379829639,1755420084741,150.0,0.00019478,30]
[379829641,1755420085179,241.31,0.00020406,30]
[379829649,1755420117156,5000.0,0.00019178,2]
[379829650,1755420117488,1770.56066734,0.00019178,2]
[379829654,1755420132765,-1200.0,0.0001956,2]
[379829655,1755420132789,-300.0,0.0001956,2]
[379829657,1755420165191,150.0,0.00017009,30]
[379829658,1755420165613,262.01,0.00017819,30]
[379829659,1755420166619,393.02,0.00018629,30]
[379829660,1755420167236,524.02,0.00019439,30]